fUSD/lending_fUSD_20241023
["ID","MTS","AMOUNT","RATE_DAILY","PERIOD"]
[340707923,1729696260192,-1335.55,0.00051065,120]
[340707924,1729696260202,-500.0,0.00051065,120]
[340707925,1729696260213,-207.1471696,0.00051065,120]
[340707926,1729696260223,-884.17,0.00051065,120]
[340707927,1729696260232,-500.0,0.00051065,120]
[340707928,1729696260242,-500.0,0.00051065,120]
[340707929,1729696260252,-403.31727987,0.00051065,120]
[340707930,1729696260262,-500.0,0.00051065,120]
[340707931,1729696260272,-500.0,0.00051065,7]
[340707932,1729696260281,-500.0,0.00051065,120]
[340707933,1729696260291,-500.0,0.00051065,120]
[340707934,1729696260300,-500.0,0.00051065,120]
[340707935,1729696260311,-500.0,0.00051065,120]
[340707936,1729696260322,-500.0,0.00051065,120]
[340707937,1729696260332,-500.0,0.00051065,120]
[340707938,1729696260342,-1593.84,0.00051065,120]
[340707939,1729696260352,-500.0,0.00051065,120]
[340707940,1729696260362,-500.0,0.00051065,120]
[340707941,1729696260372,-270.27253765,0.00051067,28]
[340707942,1729696260381,-285.88,0.00051116,2]
[340707943,1729696260391,-835.69,0.00051138,120]
[340707944,1729696260401,-935.08,0.00051138,120]
[340707945,1729696260412,-500.0,0.00051138,120]
[340707946,1729696260422,-500.0,0.00051138,120]
[340707947,1729696260432,-500.0,0.00051138,120]
[340707948,1729696260441,-2535.29,0.00051138,120]
[340707949,1729696260451,-1430.45,0.00051138,120]
[340707950,1729696260461,-2063.97,0.00051138,120]
[340707951,1729696260472,-500.0,0.00051138,120]
[340707952,1729696260481,-500.0,0.00051138,120]
[340707953,1729696260491,-805.45,0.00051138,120]
[340707954,1729696260500,-1202.13,0.00051138,120]
[340707955,1729696260512,-496.99994715,0.00051139,120]
[340707956,1729696260523,-500.0,0.00051139,120]
[340707957,1729696260533,-1000.0,0.00051139,120]
[340707958,1729696260542,-231.6991778,0.00051139,120]
[340707959,1729696260552,-500.0,0.00051139,120]
[340707960,1729696260563,-500.0,0.00051139,120]
[340707961,1729696260572,-500.0,0.00051139,120]
[340707962,1729696260583,-500.0,0.00051139,120]
[340707963,1729696260592,-500.0,0.00051139,120]
[340707964,1729696260603,-500.0,0.00051139,120]
[340707965,1729696260612,-500.0,0.00051139,120]
[340707966,1729696260621,-500.0,0.00051139,120]
[340707967,1729696260631,-391.38682232,0.00051139,120]
[340707968,1729696260640,-500.0,0.00051139,120]
[340707969,1729696260650,-1011.7,0.00051139,120]
[340707970,1729696260660,-500.0,0.00051139,120]
[340707971,1729696260670,-726.23,0.00051139,120]
[340707972,1729696260681,-500.0,0.00051139,120]
[340707973,1729696260690,-500.0,0.00051139,120]
[340707974,1729696260700,-500.0,0.00051139,120]
[340707975,1729696260710,-500.0,0.00051139,120]
[340707976,1729696260720,-500.0,0.00051139,120]
[340707977,1729696260730,-500.0,0.00051139,120]
[340707978,1729696260739,-500.0,0.00051139,120]
[340707979,1729696260749,-500.0,0.00051139,120]
[340707980,1729696260759,-500.0,0.00051139,120]
[340707981,1729696260769,-500.0,0.00051139,120]
[340707982,1729696260779,-500.0,0.00051139,120]
[340707983,1729696260789,-500.0,0.00051154,120]
[340707984,1729696260799,-500.0,0.00051154,120]
[340707985,1729696260808,-1333.47,0.00051154,120]
[340707986,1729696260818,-947.6,0.00051154,120]
[340707987,1729696260828,-500.0,0.00051154,120]
[340707988,1729696260837,-500.0,0.00051154,120]
[340707989,1729696260847,-500.0,0.00051154,120]
[340707990,1729696260856,-1028.07,0.00051154,120]
[340707991,1729696260866,-500.0,0.00051154,120]
[340707992,1729696260876,-500.0,0.00051154,120]
[340707993,1729696260885,-479.3167709,0.00051154,120]
[340707994,1729696260895,-500.0,0.00051154,120]
[340707995,1729696260904,-500.0,0.00051154,120]
[340707996,1729696260914,-500.0,0.00051154,120]
[340707997,1729696260923,-500.0,0.00051154,120]
[340707998,1729696260932,-500.0,0.00051154,120]
[340707999,1729696260985,-500.0,0.00051154,120]
[340708000,1729696260994,-500.0,0.00051154,120]
[340708001,1729696261003,-500.0,0.00051154,120]
[340708002,1729696261016,-650.47,0.00051154,120]
[340708003,1729696261028,-1207.39,0.00051154,120]
[340708004,1729696261038,-833.24,0.00051154,120]
[340708005,1729696261047,-500.0,0.00051238,120]
[340708006,1729696261056,-214.18903079,0.00051238,120]
[340708007,1729696261065,-500.0,0.00051238,120]
[340708008,1729696261075,-500.0,0.00051238,120]
[340708009,1729696261085,-500.0,0.00051238,120]
[340708010,1729696261094,-500.0,0.00051238,120]
[340708011,1729696261103,-500.0,0.00051238,120]
[340708012,1729696261112,-500.0,0.00051238,120]
[340708013,1729696261122,-500.0,0.00051238,120]
[340708014,1729696261131,-500.0,0.00051238,120]
[340708015,1729696261141,-500.0,0.00051238,120]
[340708016,1729696261150,-162.92007899,0.00051238,120]
[340708017,1729696261160,-500.0,0.00051238,120]
[340708018,1729696261169,-322.02192683,0.00051238,120]
[340708019,1729696261178,-500.0,0.00051238,120]
[340708020,1729696261187,-631.55,0.00051238,120]
[340708021,1729696261197,-500.0,0.00051238,120]
[340708022,1729696261206,-500.0,0.00051238,120]
[340708023,1729696261215,-500.0,0.00051238,120]
[340708024,1729696261224,-500.0,0.00051238,120]
[340708025,1729696261234,-220.44427677,0.00051238,120]
[340708026,1729696261243,-500.0,0.00051238,120]
[340708027,1729696261252,-500.0,0.00051238,120]
[340708028,1729696261264,-500.0,0.00051238,120]
[340708029,1729696261273,-500.0,0.00051238,120]
[340708030,1729696261282,-932.92,0.00051238,120]
[340708031,1729696261291,-249.15851708,0.00051238,120]
[340708032,1729696261301,-1518.46,0.00051238,120]
[340708033,1729696261310,-500.0,0.00051238,120]
[340708034,1729696261321,-500.0,0.00051238,120]
[340708035,1729696261335,-500.0,0.00051238,120]
[340708036,1729696261344,-500.0,0.00051238,120]
[340708037,1729696261353,-616.62,0.00051238,7]
[340708038,1729696261362,-1134.13,0.00051238,60]
[340708039,1729696261373,-500.0,0.00051238,120]
[340708040,1729696261383,-500.0,0.00051238,120]
[340708041,1729696261392,-500.0,0.00051238,120]
[340708042,1729696261402,-500.0,0.00051238,120]
[340708043,1729696261410,-500.0,0.00051238,120]
[340708044,1729696261420,-500.0,0.00051238,120]
[340708045,1729696261429,-500.0,0.00051238,120]
[340708046,1729696261439,-279.56,0.00051238,120]
[340708047,1729696261448,-500.0,0.00051238,120]
[340708048,1729696261457,-500.0,0.00051238,120]
[340708049,1729696261466,-500.0,0.00051238,120]
[340708050,1729696261476,-500.0,0.00051238,120]
[340708051,1729696261485,-500.0,0.00051238,120]
[340708052,1729696261495,-963.46,0.00051238,120]
[340708053,1729696261504,-976.56,0.00051238,120]
[340708054,1729696261515,-500.0,0.00051238,120]
[340708055,1729696261525,-658.07,0.00051238,120]
[340708056,1729696261534,-500.0,0.00051238,120]
[340708057,1729696261543,-951.13,0.00051238,120]
[340708058,1729696261553,-1201.86,0.00051238,120]
[340708059,1729696261562,-629.96,0.00051238,120]
[340708060,1729696261571,-500.0,0.00051238,120]
[340708061,1729696261580,-1045.98,0.00051238,120]
[340708062,1729696261591,-500.0,0.00051238,120]
[340708063,1729696261600,-500.0,0.00051238,120]
[340708064,1729696261609,-500.0,0.00051238,120]
[340708065,1729696261619,-1487.73,0.00051329,120]
[340708066,1729696261628,-500.0,0.00051329,120]
[340708067,1729696261637,-153.042613,0.00051329,120]
[340708068,1729696261646,-165.048286,0.00051329,120]
[340708069,1729696261655,-500.0,0.00051329,120]
[340708070,1729696261664,-234.993278,0.00051329,120]
[340708071,1729696261673,-958.81,0.00051329,120]
[340708072,1729696261682,-7538.25,0.00051329,120]
[340708073,1729696261691,-500.0,0.00051329,120]
[340708074,1729696261701,-618.61,0.00051329,120]
[340708075,1729696261711,-500.0,0.00051329,120]
[340708076,1729696261720,-2827.89,0.00051329,21]
[340708077,1729696261730,-775.74,0.00051329,120]
[340708078,1729696261739,-900.97,0.00051329,120]
[340708079,1729696261748,-1263.76,0.00051329,120]
[340708080,1729696261757,-1052.1,0.00051329,120]
[340708081,1729696261769,-518.32,0.00051329,120]
[340708082,1729696261778,-1190.96,0.00051329,120]
[340708083,1729696261787,-500.0,0.00051329,120]
[340708084,1729696261797,-639.92,0.00051338,120]
[340708085,1729696261806,-500.0,0.00051338,120]
[340708086,1729696261815,-1145.77,0.00051338,120]
[340708087,1729696261824,-1096.93,0.00051338,120]
[340708088,1729696261833,-500.0,0.00051338,120]
[340708089,1729696261842,-1101.51,0.00051338,120]
[340708090,1729696261851,-670.28,0.00051338,120]
[340708091,1729696261862,-500.0,0.00051338,120]
[340708092,1729696261873,-500.0,0.00051338,120]
[340708093,1729696261882,-500.0,0.00051338,120]
[340708094,1729696261891,-500.0,0.00051338,120]
[340708095,1729696261900,-657.44,0.00051338,120]
[340708096,1729696261910,-2806.4,0.00051338,120]
[340708097,1729696261920,-500.0,0.00051338,120]
[340708098,1729696261930,-500.0,0.00051338,120]
[340708099,1729696261939,-164.69851004,0.00051338,120]
[340708100,1729696261950,-1534.31,0.00051338,120]
[340708101,1729696261960,-586.39,0.00051339,120]
[340708102,1729696261970,-500.0,0.00051339,120]
[340708103,1729696261980,-500.0,0.00051339,120]
[340708104,1729696261990,-500.0,0.00051339,120]
[340708105,1729696261999,-500.0,0.00051339,120]
[340708106,1729696262009,-500.0,0.00051339,120]
[340708107,1729696262018,-500.0,0.00051339,120]
[340708108,1729696262028,-500.0,0.00051339,120]
[340708109,1729696262037,-500.0,0.00051339,120]
[340708110,1729696262046,-500.0,0.00051339,120]
[340708111,1729696262056,-331.13575456,0.00051339,120]
[340708112,1729696262065,-500.0,0.00051339,120]
[340708113,1729696262074,-500.0,0.00051339,120]
[340708114,1729696262083,-500.0,0.00051339,120]
[340708115,1729696262093,-500.0,0.00051339,120]
[340708116,1729696262102,-500.0,0.00051339,120]
[340708117,1729696262111,-500.0,0.00051339,120]
[340708118,1729696262121,-634.21758279,0.00051339,120]
[340708119,1729696262131,-500.0,0.00051339,120]
[340708120,1729696262141,-500.0,0.00051339,120]
[340708121,1729696262151,-500.0,0.00051339,120]
[340708122,1729696262160,-500.0,0.00051339,120]
[340708123,1729696262169,-500.0,0.00051339,120]
[340708124,1729696262179,-500.0,0.00051339,120]
[340708125,1729696262188,-500.0,0.00051339,120]
[340708126,1729696262197,-150.0,0.00051339,120]
[340708127,1729696262207,-500.0,0.00051339,120]
[340708128,1729696262216,-505.37,0.00051339,120]
[340708129,1729696262226,-554.06,0.00051339,120]
[340708130,1729696262235,-441.66485889,0.00051339,120]
[340708131,1729696262244,-512.94,0.00051339,120]
[340708132,1729696262253,-500.0,0.00051339,120]
[340708133,1729696262264,-1145.54,0.00051339,120]
[340708134,1729696262273,-500.0,0.00051339,120]
[340708135,1729696262282,-500.0,0.00051339,120]
[340708136,1729696262292,-500.0,0.00051339,120]
[340708137,1729696262301,-500.0,0.00051339,120]
[340708138,1729696262310,-672.92,0.00051339,120]
[340708139,1729696262324,-542.37,0.00051339,120]
[340708140,1729696262334,-213.89382703,0.00051339,120]
[340708141,1729696262344,-317.96402049,0.00051339,120]
[340708142,1729696262353,-500.0,0.00051339,120]
[340708143,1729696262364,-922.62,0.00051339,120]
[340708144,1729696262374,-500.0,0.00051339,120]
[340708145,1729696262384,-500.0,0.00051339,120]
[340708146,1729696262394,-492.23404389,0.00051339,120]
[340708147,1729696262406,-500.0,0.00051339,120]
[340708148,1729696262417,-500.0,0.00051339,120]
[340708149,1729696262427,-500.0,0.00051339,120]
[340708150,1729696262438,-500.0,0.00051339,120]
[340708151,1729696262447,-584.33,0.00051339,120]
[340708152,1729696262458,-500.0,0.00051339,120]
[340708153,1729696262468,-753.53,0.00051339,120]
[340708154,1729696262477,-500.0,0.00051339,120]
[340708155,1729696262486,-500.0,0.00051339,120]
[340708156,1729696262495,-500.0,0.00051339,120]
[340708157,1729696262504,-500.0,0.00051339,120]
[340708158,1729696262515,-968.55,0.00051339,120]
[340708159,1729696262524,-500.0,0.00051339,120]
[340708160,1729696262534,-534.4257553,0.00051339,120]
[340708161,1729696262544,-1925.48,0.00051339,120]
[340708162,1729696262553,-1030.77,0.00051339,120]
[340708163,1729696262563,-500.0,0.00051339,120]
[340708164,1729696262573,-500.0,0.00051339,120]
[340708165,1729696262582,-1363.34,0.00051339,120]
[340708166,1729696262591,-500.0,0.00051339,120]
[340708167,1729696262602,-500.0,0.00051339,120]
[340708168,1729696262613,-500.0,0.00051339,120]
[340708169,1729696262622,-500.0,0.00051339,120]
[340708170,1729696262631,-847.01,0.00051339,120]
[340708171,1729696262642,-500.0,0.00051339,120]
[340708172,1729696262652,-700.02,0.00051339,120]
[340708173,1729696262663,-214.59088705,0.00051339,120]
[340708174,1729696262672,-622.74,0.00051339,120]
[340708175,1729696262682,-500.0,0.00051339,120]
[340708176,1729696262691,-601.0,0.00051339,120]
[340708177,1729696262700,-1335.55,0.00051339,120]
[340708178,1729696262710,-500.0,0.00051339,120]
[340708179,1729696262720,-884.17,0.00051339,120]
[340708180,1729696262729,-500.0,0.00051339,120]
[340708181,1729696262739,-500.0,0.00051339,120]
[340708182,1729696262748,-500.0,0.00051339,120]
[340708183,1729696262757,-500.0,0.00051339,7]
[340708184,1729696262768,-500.0,0.00051339,120]
[340708185,1729696262778,-500.0,0.00051339,120]
[340708186,1729696262787,-500.0,0.00051339,120]
[340708187,1729696262796,-500.0,0.00051339,120]
[340708188,1729696262805,-500.0,0.00051339,120]
[340708189,1729696262815,-428.49891534,0.00051339,120]
[340708190,1729696262824,-1593.84,0.00051339,120]
[340708191,1729696262834,-500.0,0.00051339,120]
[340708192,1729696262844,-500.0,0.00051339,120]
[340708193,1729696262853,-835.69,0.00051412,120]
[340708194,1729696262862,-935.08,0.00051412,120]
[340708195,1729696262871,-500.0,0.00051412,120]
[340708196,1729696262880,-500.0,0.00051412,120]
[340708197,1729696262890,-500.0,0.00051412,120]
[340708198,1729696262902,-2535.29,0.00051412,120]
[340708199,1729696262912,-1430.45,0.00051412,120]
[340708200,1729696262921,-2063.97,0.00051412,120]
[340708201,1729696262932,-500.0,0.00051412,120]
[340708202,1729696262941,-500.0,0.00051412,120]
[340708203,1729696262951,-805.45,0.00051412,120]
[340708204,1729696262960,-1202.13,0.00051412,120]
[340708205,1729696262969,-500.0,0.00051413,120]
[340708206,1729696262978,-1026.39143957,0.00051413,120]
[340708207,1729696262988,-516.19879893,0.00051413,120]
[340708208,1729696262998,-500.0,0.00051413,120]
[340708209,1729696263008,-500.0,0.00051413,120]
[340708210,1729696263018,-500.0,0.00051413,120]
[340708211,1729696263027,-500.0,0.00051413,120]
[340708212,1729696263036,-500.0,0.00051413,120]
[340708213,1729696263045,-500.0,0.00051413,120]
[340708214,1729696263055,-500.0,0.00051413,120]
[340708215,1729696263064,-500.0,0.00051413,120]
[340708216,1729696263074,-1011.7,0.00051413,120]
[340708217,1729696263083,-500.0,0.00051413,120]
[340708218,1729696263092,-726.23,0.00051413,120]
[340708219,1729696263102,-500.0,0.00051413,120]
[340708220,1729696263112,-500.0,0.00051413,120]
[340708221,1729696263121,-500.0,0.00051413,120]
[340708222,1729696263131,-500.0,0.00051413,120]
[340708223,1729696263141,-500.0,0.00051413,120]
[340708224,1729696263150,-500.0,0.00051413,120]
[340708225,1729696263159,-529.46024298,0.00051413,120]
[340708226,1729696263168,-500.0,0.00051413,120]
[340708227,1729696263178,-500.0,0.00051413,120]
[340708228,1729696263188,-500.0,0.00051413,120]
[340708229,1729696263198,-500.0,0.00051428,120]
[340708230,1729696263207,-500.0,0.00051428,120]
[340708231,1729696263216,-1333.47,0.00051428,120]
[340708232,1729696263226,-947.6,0.00051428,120]
[340708233,1729696263235,-500.0,0.00051428,120]
[340708234,1729696263245,-550.74777587,0.00051428,120]
[340708235,1729696263254,-500.0,0.00051428,120]
[340708236,1729696263265,-1028.07,0.00051428,120]
[340708237,1729696263280,-267.62098035,0.00051428,120]
[340708238,1729696263292,-500.0,0.00051428,120]
[340708239,1729696263301,-500.0,0.00051428,120]
[340708240,1729696263311,-500.0,0.00051428,120]
[340708241,1729696263323,-500.0,0.00051428,120]
[340708242,1729696263335,-500.0,0.00051428,120]
[340708243,1729696263345,-500.0,0.00051428,120]
[340708244,1729696263354,-500.0,0.00051428,120]
[340708245,1729696263366,-500.0,0.00051428,120]
[340708246,1729696263376,-500.0,0.00051428,120]
[340708247,1729696263385,-650.47,0.00051428,120]
[340708248,1729696263394,-1207.39,0.00051428,120]
[340708249,1729696263405,-833.24,0.00051428,120]
[340708250,1729696263415,-522.06782235,0.00051512,120]
[340708251,1729696263426,-500.0,0.00051512,120]
[340708252,1729696263435,-500.0,0.00051512,120]
[340708253,1729696263444,-197.71235031,0.00051512,120]
[340708254,1729696263453,-500.0,0.00051512,120]
[340708255,1729696263463,-500.0,0.00051512,120]
[340708256,1729696263472,-500.0,0.00051512,120]
[340708257,1729696263481,-500.0,0.00051512,120]
[340708258,1729696263491,-500.0,0.00051512,120]
[340708259,1729696263500,-245.2319094,0.00051512,120]
[340708260,1729696263510,-500.0,0.00051512,120]
[340708261,1729696263525,-500.0,0.00051512,120]
[340708262,1729696263534,-631.55,0.00051512,120]
[340708263,1729696263543,-500.0,0.00051512,120]
[340708264,1729696263552,-500.0,0.00051512,120]
[340708265,1729696263562,-500.0,0.00051512,120]
[340708266,1729696263571,-500.0,0.00051512,120]
[340708267,1729696263581,-500.0,0.00051512,120]
[340708268,1729696263590,-487.72724454,0.00051512,120]
[340708269,1729696263599,-500.0,0.00051512,120]
[340708270,1729696263609,-500.0,0.00051512,120]
[340708271,1729696263618,-932.92,0.00051512,120]
[340708272,1729696263627,-1518.46,0.00051512,120]
[340708273,1729696263637,-500.0,0.00051512,120]
[340708274,1729696263646,-500.0,0.00051512,120]
[340708275,1729696263655,-500.0,0.00051512,120]
[340708276,1729696263665,-500.0,0.00051512,120]
[340708277,1729696263674,-616.62,0.00051512,7]
[340708278,1729696263684,-1134.13,0.00051512,60]
[340708279,1729696263693,-500.0,0.00051512,120]
[340708280,1729696263703,-500.0,0.00051512,120]
[340708281,1729696263712,-500.0,0.00051512,120]
[340708282,1729696263721,-312.41861219,0.00051512,120]
[340708283,1729696263731,-500.0,0.00051512,120]
[340708284,1729696263740,-500.0,0.00051512,120]
[340708285,1729696263749,-500.0,0.00051512,120]
[340708286,1729696263759,-500.0,0.00051512,120]
[340708287,1729696263770,-299.29518005,0.00051512,120]
[340708288,1729696263779,-500.0,0.00051512,120]
[340708289,1729696263789,-500.0,0.00051512,120]
[340708290,1729696263798,-500.0,0.00051512,120]
[340708291,1729696263808,-963.46,0.00051512,120]
[340708292,1729696263818,-976.56,0.00051512,120]
[340708293,1729696263827,-500.0,0.00051512,120]
[340708294,1729696263837,-658.07,0.00051512,120]
[340708295,1729696263846,-500.0,0.00051512,120]
[340708296,1729696263856,-951.13,0.00051512,120]
[340708297,1729696263867,-1201.86,0.00051512,120]
[340708298,1729696263876,-629.96,0.00051512,120]
[340708299,1729696263886,-500.0,0.00051512,120]
[340708300,1729696263896,-1045.98,0.00051512,120]
[340708301,1729696263906,-500.0,0.00051512,120]
[340708302,1729696263916,-160.42877694,0.00051512,120]
[340708303,1729696263926,-500.0,0.00051512,120]
[340708304,1729696263936,-1487.73,0.00051603,120]
[340708305,1729696263945,-500.0,0.00051603,120]
[340708306,1729696263955,-165.048286,0.00051603,120]
[340708307,1729696263965,-500.0,0.00051603,120]
[340708308,1729696263974,-234.993278,0.00051603,120]
[340708309,1729696263984,-958.81,0.00051603,120]
[340708310,1729696263993,-7538.25,0.00051603,120]
[340708311,1729696264003,-500.0,0.00051603,120]
[340708312,1729696264015,-618.61,0.00051603,120]
[340708313,1729696264025,-500.0,0.00051603,120]
[340708314,1729696264034,-2827.89,0.00051603,21]
[340708315,1729696264044,-775.74,0.00051603,120]
[340708316,1729696264053,-900.97,0.00051603,120]
[340708317,1729696264063,-1263.76,0.00051603,120]
[340708318,1729696264072,-1052.1,0.00051603,120]
[340708319,1729696264082,-518.32,0.00051603,120]
[340708320,1729696264092,-1190.96,0.00051603,120]
[340708321,1729696264101,-500.0,0.00051603,120]
[340708322,1729696264110,-639.92,0.00051612,120]
[340708323,1729696264120,-500.0,0.00051612,120]
[340708324,1729696264130,-1145.77,0.00051612,120]
[340708325,1729696264140,-1096.93,0.00051612,120]
[340708326,1729696264151,-500.0,0.00051612,120]
[340708327,1729696264161,-1101.51,0.00051612,120]
[340708328,1729696264171,-670.28,0.00051612,120]
[340708329,1729696264180,-500.0,0.00051612,120]
[340708330,1729696264190,-500.0,0.00051612,120]
[340708331,1729696264200,-500.0,0.00051612,120]
[340708332,1729696264209,-500.0,0.00051612,120]
[340708333,1729696264219,-657.44,0.00051612,120]
[340708334,1729696264229,-2806.4,0.00051612,120]
[340708335,1729696264238,-500.0,0.00051612,120]
[340708336,1729696264249,-500.0,0.00051612,120]
[340708337,1729696264259,-1534.31,0.00051612,120]
[340708338,1729696264274,-500.0,0.00051613,10]
[340708339,1729696264284,-586.39,0.00051613,120]
[340708340,1729696264295,-500.0,0.00051613,120]
[340708341,1729696264305,-500.0,0.00051613,120]
[340708342,1729696264316,-500.0,0.00051613,120]
[340708343,1729696264327,-500.0,0.00051613,120]
[340708344,1729696264337,-500.0,0.00051613,120]
[340708345,1729696264348,-500.0,0.00051613,120]
[340708346,1729696264358,-500.0,0.00051613,120]
[340708347,1729696264367,-500.0,0.00051613,120]
[340708348,1729696264376,-500.0,0.00051613,120]
[340708349,1729696264386,-500.0,0.00051613,120]
[340708350,1729696264396,-500.0,0.00051613,120]
[340708351,1729696264406,-500.0,0.00051613,120]
[340708352,1729696264416,-500.0,0.00051613,120]
[340708353,1729696264426,-500.0,0.00051613,120]
[340708354,1729696264435,-500.0,0.00051613,120]
[340708355,1729696264444,-500.0,0.00051613,120]
[340708356,1729696264453,-500.0,0.00051613,120]
[340708357,1729696264463,-500.0,0.00051613,120]
[340708358,1729696264472,-500.0,0.00051613,120]
[340708359,1729696264481,-500.0,0.00051613,120]
[340708360,1729696264491,-500.0,0.00051613,120]
[340708361,1729696264500,-500.0,0.00051613,120]
[340708362,1729696264509,-150.0,0.00051613,120]
[340708363,1729696264523,-500.0,0.00051613,120]
[340708364,1729696264533,-505.37,0.00051613,120]
[340708365,1729696264543,-554.06,0.00051613,120]
[340708366,1729696264552,-512.94,0.00051613,120]
[340708367,1729696264562,-500.0,0.00051613,120]
[340708368,1729696264572,-1145.54,0.00051613,120]
[340708369,1729696264581,-500.0,0.00051613,120]
[340708370,1729696264591,-500.0,0.00051613,120]
[340708371,1729696264601,-500.0,0.00051613,120]
[340708372,1729696264610,-500.0,0.00051613,120]
[340708373,1729696264621,-672.92,0.00051613,120]
[340708374,1729696264630,-542.37,0.00051613,120]
[340708375,1729696264640,-500.0,0.00051613,120]
[340708376,1729696264650,-922.62,0.00051613,120]
[340708377,1729696264660,-500.0,0.00051613,120]
[340708378,1729696264670,-500.0,0.00051613,120]
[340708379,1729696264679,-500.0,0.00051613,120]
[340708380,1729696264688,-500.0,0.00051613,120]
[340708381,1729696264698,-252.35367259,0.00051613,120]
[340708382,1729696264708,-500.0,0.00051613,120]
[340708383,1729696264717,-584.33,0.00051613,120]
[340708384,1729696264727,-500.0,0.00051613,120]
[340708385,1729696264736,-753.53,0.00051613,120]
[340708386,1729696264746,-500.0,0.00051613,120]
[340708387,1729696264755,-500.0,0.00051613,120]
[340708388,1729696264766,-500.0,0.00051613,120]
[340708389,1729696264775,-500.0,0.00051613,120]
[340708390,1729696264785,-968.55,0.00051613,120]
[340708391,1729696264794,-500.0,0.00051613,120]
[340708392,1729696264804,-1925.48,0.00051613,120]
[340708393,1729696264814,-1030.77,0.00051613,120]
[340708394,1729696264824,-500.0,0.00051613,120]
[340708395,1729696264833,-500.0,0.00051613,120]
[340708396,1729696264843,-1363.34,0.00051613,120]
[340708397,1729696264852,-500.0,0.00051613,120]
[340708398,1729696264863,-500.0,0.00051613,120]
[340708399,1729696264872,-500.0,0.00051613,120]
[340708400,1729696264882,-847.01,0.00051613,120]
[340708401,1729696264892,-500.0,0.00051613,120]
[340708402,1729696264902,-700.02,0.00051613,120]
[340708403,1729696264912,-622.74,0.00051613,120]
[340708404,1729696264922,-601.0,0.00051613,120]
[340708405,1729696264932,-500.0,0.00051613,120]
[340708406,1729696264942,-1335.55,0.00051613,120]
[340708407,1729696264952,-500.0,0.00051613,120]
[340708408,1729696264962,-884.17,0.00051613,120]
[340708409,1729696264971,-500.0,0.00051613,120]
[340708410,1729696264980,-500.0,0.00051613,120]
[340708411,1729696264990,-500.0,0.00051613,120]
[340708412,1729696265000,-500.0,0.00051613,7]
[340708413,1729696265010,-500.0,0.00051613,120]
[340708414,1729696265022,-500.0,0.00051613,120]
[340708415,1729696265032,-500.0,0.00051613,120]
[340708416,1729696265041,-550.03133287,0.00051613,120]
[340708417,1729696265051,-500.0,0.00051613,120]
[340708418,1729696265060,-1593.84,0.00051613,120]
[340708419,1729696265071,-500.0,0.00051613,120]
[340708420,1729696265081,-500.0,0.00051613,120]
[340708421,1729696265090,-835.69,0.00051686,120]
[340708422,1729696265100,-935.08,0.00051686,120]